[Event "Early-Titled-Tuesday-Blitz-January-30-2024"]
[Site "Chess.com"]
[Date "2024.01.30"]
[Round "11"]
[White "claudyna16"]
[Black "FM_VS99"]
[Result "0-1"]
[WhiteElo "2406"]
[BlackElo "2564"]
[TimeControl "180+1"]
[EndTime "10:09:56 PST"]
[Termination "FM_VS99 won by resignation"]

1. c4 {[%clk 0:03:00.9]} 1... Nf6 {[%clk 0:02:58.2]} 2. g3 {[%clk 0:03:00.6]}
2... d5 {[%clk 0:02:56.5]} 3. cxd5 {[%clk 0:02:59.5]} 3... Nxd5 {[%clk
0:02:57.4]} 4. Bg2 {[%clk 0:02:59.8]} 4... e5 {[%clk 0:02:57.5]} 5. Nc3 {[%clk
0:02:59.2]} 5... Nb6 {[%clk 0:02:58.1]} 6. e3 {[%clk 0:02:58]} 6... Nc6 {[%clk
0:02:58]} 7. Nge2 {[%clk 0:02:58.3]} 7... Qd3 {[%clk 0:02:44.1]} 8. O-O {[%clk
0:02:54.5]} 8... Bf5 {[%clk 0:02:26.6]} 9. f4 {[%clk 0:02:39.9]} 9... O-O-O
{[%clk 0:02:13]} 10. fxe5 {[%clk 0:02:29.3]} 10... Nxe5 {[%clk 0:01:57.6]} 11.
Nd4 {[%clk 0:02:24.2]} 11... Bg6 {[%clk 0:01:51.6]} 12. Rf2 {[%clk 0:01:54.7]}
12... Rxd4 {[%clk 0:01:12.9]} 13. Bf1 {[%clk 0:01:38]} 13... Qxe3 {[%clk
0:01:09.5]} 14. dxe3 {[%clk 0:01:37.7]} 14... Rxd1 {[%clk 0:01:10.1]} 15. Nxd1
{[%clk 0:01:38.6]} 15... Bc5 {[%clk 0:01:10]} 16. Rc2 {[%clk 0:01:26.4]} 16...
Bxc2 {[%clk 0:01:09.6]} 17. Nf2 {[%clk 0:01:21.6]} 17... Rd8 {[%clk 0:01:07.3]}
18. b3 {[%clk 0:01:20]} 18... f6 {[%clk 0:00:54.2]} 19. a3 {[%clk 0:01:18]}
19... Nd5 {[%clk 0:00:53.2]} 20. b4 {[%clk 0:01:14.5]} 20... Bxe3 {[%clk
0:00:51.5]} 21. Bxe3 {[%clk 0:01:14.5]} 21... Nxe3 {[%clk 0:00:52.4]} 22. Bh3+
{[%clk 0:01:14.3]} 22... Kb8 {[%clk 0:00:52.2]} 23. Re1 {[%clk 0:01:14.7]} 23...
Nf3+ {[%clk 0:00:51.4]} 0-1

[Event "Early-Titled-Tuesday-Blitz-January-30-2024"]
[Site "Chess.com"]
[Date "2024.01.30"]
[Round "11"]
[White "Noki102"]
[Black "ChessSkool"]
[Result "0-1"]
[WhiteElo "2529"]
[BlackElo "2709"]
[TimeControl "180+1"]
[EndTime "10:09:59 PST"]
[Termination "ChessSkool won by resignation"]

1. d4 {[%clk 0:02:58.7]} 1... d5 {[%clk 0:02:51.5]} 2. Nf3 {[%clk 0:02:59.6]}
2... Nf6 {[%clk 0:02:48.1]} 3. Bf4 {[%clk 0:02:59.8]} 3... c5 {[%clk 0:02:48.1]}
4. e3 {[%clk 0:03:00]} 4... cxd4 {[%clk 0:02:47.6]} 5. exd4 {[%clk 0:03:00]}
5... Nc6 {[%clk 0:02:48.3]} 6. c3 {[%clk 0:02:59.5]} 6... Bf5 {[%clk 0:02:47.9]}
7. Bd3 {[%clk 0:02:57.4]} 7... Bxd3 {[%clk 0:02:44.3]} 8. Qxd3 {[%clk
0:02:58.3]} 8... e6 {[%clk 0:02:44.9]} 9. O-O {[%clk 0:02:57.8]} 9... Bd6 {[%clk
0:02:43.8]} 10. Bxd6 {[%clk 0:02:53.8]} 10... Qxd6 {[%clk 0:02:44.7]} 11. Nbd2
{[%clk 0:02:54.2]} 11... O-O {[%clk 0:02:41.7]} 12. Rfe1 {[%clk 0:02:52.3]}
12... b5 {[%clk 0:02:41]} 13. a4 {[%clk 0:02:47.9]} 13... b4 {[%clk 0:02:40.6]}
14. c4 {[%clk 0:02:38.2]} 14... dxc4 {[%clk 0:02:40.9]} 15. Nxc4 {[%clk
0:02:32.8]} 15... Qd7 {[%clk 0:02:35.5]} 16. Nce5 {[%clk 0:02:13.5]} 16... Nxe5
{[%clk 0:02:35]} 17. Nxe5 {[%clk 0:02:13.9]} 17... Qd5 {[%clk 0:02:35.5]} 18.
Qb5 {[%clk 0:02:00.2]} 18... Qxd4 {[%clk 0:02:25.6]} 19. Nc6 {[%clk 0:01:41.2]}
19... Qxb2 {[%clk 0:02:20.4]} 20. Rab1 {[%clk 0:01:38.5]} 20... Qd2 {[%clk
0:02:19.6]} 21. Red1 {[%clk 0:01:32.8]} 21... Qh6 {[%clk 0:02:03.6]} 22. Rxb4
{[%clk 0:01:29.8]} 22... Nd5 {[%clk 0:02:01.2]} 23. Rg4 {[%clk 0:01:12.2]} 23...
Nc3 {[%clk 0:01:47.9]} 24. Qc4 {[%clk 0:00:46.9]} 24... Nxd1 {[%clk 0:01:37.7]}
25. Rh4 {[%clk 0:00:45.6]} 25... Qf6 {[%clk 0:01:28.4]} 26. Qe4 {[%clk
0:00:41.1]} 26... Qxf2+ {[%clk 0:01:27.8]} 0-1

[Event "Early-Titled-Tuesday-Blitz-January-30-2024"]
[Site "Chess.com"]
[Date "2024.01.30"]
[Round "11"]
[White "Iball95"]
[Black "dennisodessa"]
[Result "1-0"]
[WhiteElo "2783"]
[BlackElo "2613"]
[TimeControl "180+1"]
[EndTime "10:10:01 PST"]
[Termination "Iball95 won by resignation"]

1. e4 {[%clk 0:03:00.9]} 1... e6 {[%clk 0:03:00.3]} 2. d4 {[%clk 0:03:00.6]}
2... d5 {[%clk 0:03:00.8]} 3. Nc3 {[%clk 0:03:01.2]} 3... Bb4 {[%clk 0:02:59.6]}
4. exd5 {[%clk 0:03:00.8]} 4... exd5 {[%clk 0:02:59.3]} 5. Bd3 {[%clk
0:03:01.5]} 5... Nf6 {[%clk 0:02:59]} 6. Nf3 {[%clk 0:03:01.8]} 6... O-O {[%clk
0:02:58.9]} 7. O-O {[%clk 0:03:01.8]} 7... Bg4 {[%clk 0:02:54.2]} 8. h3 {[%clk
0:03:00.6]} 8... Bh5 {[%clk 0:02:54.5]} 9. Bg5 {[%clk 0:02:56.1]} 9... c6 {[%clk
0:02:54.1]} 10. Re1 {[%clk 0:02:52.2]} 10... Nbd7 {[%clk 0:02:51.6]} 11. g4
{[%clk 0:02:51.7]} 11... Bg6 {[%clk 0:02:51.6]} 12. Ne5 {[%clk 0:02:52.6]} 12...
Bxd3 {[%clk 0:02:48.9]} 13. Qxd3 {[%clk 0:02:53.5]} 13... Be7 {[%clk 0:02:44.6]}
14. Re2 {[%clk 0:02:49.8]} 14... Re8 {[%clk 0:02:26.4]} 15. Rae1 {[%clk
0:02:47.3]} 15... Nxe5 {[%clk 0:02:26.5]} 16. Rxe5 {[%clk 0:02:42.7]} 16... Qd7
{[%clk 0:02:24.5]} 17. Qe2 {[%clk 0:02:24.1]} 17... Bd6 {[%clk 0:02:15.8]} 18.
Rxe8+ {[%clk 0:01:23.7]} 18... Rxe8 {[%clk 0:02:16.7]} 19. Qd1 {[%clk
0:01:23.5]} 19... Rxe1+ {[%clk 0:02:13.2]} 20. Qxe1 {[%clk 0:01:24.4]} 20...
Nxg4 {[%clk 0:02:13.4]} 21. Qe2 {[%clk 0:00:42.1]} 21... Nh2 {[%clk 0:02:11.8]}
22. Kg2 {[%clk 0:00:41.4]} 22... h6 {[%clk 0:02:08.2]} 23. Bh4 {[%clk
0:00:39.9]} 23... g5 {[%clk 0:01:29.1]} 24. Bg3 {[%clk 0:00:39.3]} 24... Qc7
{[%clk 0:01:29.5]} 25. Kxh2 {[%clk 0:00:37.5]} 1-0

[Event "Early-Titled-Tuesday-Blitz-January-30-2024"]
[Site "Chess.com"]
[Date "2024.01.30"]
[Round "11"]
[White "AlexTruskavetsky"]
[Black "RichardLeyvaP"]
[Result "1-0"]
[WhiteElo "2705"]
[BlackElo "2548"]
[TimeControl "180+1"]
[EndTime "10:10:07 PST"]
[Termination "AlexTruskavetsky won on time"]

1. e4 {[%clk 0:02:56.1]} 1... e5 {[%clk 0:02:45.7]} 2. Nc3 {[%clk 0:02:54.6]}
2... Nf6 {[%clk 0:02:34.6]} 3. f4 {[%clk 0:02:54.8]} 3... d5 {[%clk 0:02:34.2]}
4. fxe5 {[%clk 0:02:55.1]} 4... Nxe4 {[%clk 0:02:33.2]} 5. Qf3 {[%clk
0:02:53.5]} 5... Nxc3 {[%clk 0:02:25]} 6. bxc3 {[%clk 0:02:53.1]} 6... Be6
{[%clk 0:02:24.8]} 7. d4 {[%clk 0:02:53.3]} 7... Nc6 {[%clk 0:02:16.1]} 8. Bd3
{[%clk 0:02:49.7]} 8... Qd7 {[%clk 0:02:15.6]} 9. Ne2 {[%clk 0:02:49]} 9... Be7
{[%clk 0:02:14]} 10. O-O {[%clk 0:02:48.8]} 10... O-O-O {[%clk 0:02:13.9]} 11.
Nf4 {[%clk 0:02:48.8]} 11... Na5 {[%clk 0:02:12.1]} 12. Nxe6 {[%clk 0:02:46.5]}
12... fxe6 {[%clk 0:02:10.4]} 13. Qg3 {[%clk 0:02:45.8]} 13... g6 {[%clk
0:01:49.6]} 14. Rd1 {[%clk 0:02:39.6]} 14... Rdf8 {[%clk 0:01:44.7]} 15. Bh6
{[%clk 0:02:39.5]} 15... Rf7 {[%clk 0:01:44.6]} 16. Rf1 {[%clk 0:02:39.9]} 16...
Bf8 {[%clk 0:01:44.6]} 17. Bg5 {[%clk 0:02:40.1]} 17... Ba3 {[%clk 0:01:44.4]}
18. Rxf7 {[%clk 0:02:37.9]} 18... Qxf7 {[%clk 0:01:44]} 19. Rf1 {[%clk
0:02:38.6]} 19... Qd7 {[%clk 0:01:44.6]} 20. Qh3 {[%clk 0:02:38.1]} 20... Bb2
{[%clk 0:01:31.2]} 21. Be2 {[%clk 0:02:36.2]} 21... b6 {[%clk 0:01:25.1]} 22.
Bg4 {[%clk 0:02:34.6]} 22... Kb7 {[%clk 0:01:16.1]} 23. Bxe6 {[%clk 0:02:34.1]}
23... Qc6 {[%clk 0:01:17]} 24. Rf3 {[%clk 0:02:30]} 24... Qc4 {[%clk 0:01:05.7]}
25. Rd3 {[%clk 0:02:29]} 25... Qxa2 {[%clk 0:00:59.7]} 26. Qf3 {[%clk
0:02:22.3]} 26... c6 {[%clk 0:00:47.7]} 27. Bd7 {[%clk 0:02:15.7]} 27... Qb1+
{[%clk 0:00:17.2]} 28. Qd1 {[%clk 0:02:14.8]} 28... Qxd1+ {[%clk 0:00:16.7]} 29.
Rxd1 {[%clk 0:02:15.7]} 29... Bxc3 {[%clk 0:00:08.1]} 30. e6 {[%clk 0:02:15.9]}
1-0

[Event "Early-Titled-Tuesday-Blitz-January-30-2024"]
[Site "Chess.com"]
[Date "2024.01.30"]
[Round "11"]
[White "stepanosinovsky"]
[Black "Kunalm64"]
[Result "0-1"]
[WhiteElo "2399"]
[BlackElo "2559"]
[TimeControl "180+1"]
[EndTime "10:10:07 PST"]
[Termination "Kunalm64 won on time"]

1. e4 {[%clk 0:02:56.7]} 1... c6 {[%clk 0:02:59.4]} 2. d3 {[%clk 0:02:55.7]}
2... d5 {[%clk 0:02:59.5]} 3. Nd2 {[%clk 0:02:56.6]} 3... g6 {[%clk 0:02:59]} 4.
Ngf3 {[%clk 0:02:57.4]} 4... Bg7 {[%clk 0:02:58.8]} 5. g3 {[%clk 0:02:57.5]}
5... e5 {[%clk 0:02:59.3]} 6. Bg2 {[%clk 0:02:57.9]} 6... Ne7 {[%clk 0:02:59.8]}
7. O-O {[%clk 0:02:58.3]} 7... O-O {[%clk 0:03:00.3]} 8. Re1 {[%clk 0:02:58.8]}
8... d4 {[%clk 0:03:00.7]} 9. a4 {[%clk 0:02:58.2]} 9... a5 {[%clk 0:03:00.6]}
10. Nc4 {[%clk 0:02:58]} 10... b5 {[%clk 0:03:00.7]} 11. Ncxe5 {[%clk 0:02:42]}
11... f6 {[%clk 0:03:00.2]} 12. Nxc6 {[%clk 0:02:36.6]} 12... Nexc6 {[%clk
0:02:59.5]} 13. axb5 {[%clk 0:02:36.8]} 13... Ne5 {[%clk 0:02:56]} 14. c4 {[%clk
0:02:11.5]} 14... dxc3 {[%clk 0:02:45.7]} 15. Qb3+ {[%clk 0:01:23.6]} 15... Kh8
{[%clk 0:02:42.5]} 16. bxc3 {[%clk 0:01:15.5]} 16... Nxd3 {[%clk 0:02:36.9]} 17.
Rd1 {[%clk 0:01:08.7]} 17... Nxc1 {[%clk 0:02:36.6]} 18. Raxc1 {[%clk
0:01:09.3]} 18... Qb6 {[%clk 0:02:33.5]} 19. c4 {[%clk 0:00:57.7]} 19... Nd7
{[%clk 0:02:32.6]} 20. Rd5 {[%clk 0:00:41.5]} 20... Ne5 {[%clk 0:02:29.4]} 21.
c5 {[%clk 0:00:36.2]} 21... a4 {[%clk 0:02:27.7]} 22. Qb1 {[%clk 0:00:30.3]}
22... Qa5 {[%clk 0:02:27]} 23. Nd4 {[%clk 0:00:19.1]} 23... a3 {[%clk
0:02:22.8]} 24. Qa2 {[%clk 0:00:17.1]} 24... Nd3 {[%clk 0:02:19.8]} 25. Nc6
{[%clk 0:00:14.4]} 25... Nxc1 {[%clk 0:02:17]} 26. Qc4 {[%clk 0:00:07]} 26...
Qe1+ {[%clk 0:02:15.8]} 27. Bf1 {[%clk 0:00:07.2]} 27... a2 {[%clk 0:02:03.7]}
0-1

[Event "Early-Titled-Tuesday-Blitz-January-30-2024"]
[Site "Chess.com"]
[Date "2024.01.30"]
[Round "11"]
[White "margarita_2703"]
[Black "Actuary44"]
[Result "1-0"]
[WhiteElo "2362"]
[BlackElo "2467"]
[TimeControl "180+1"]
[EndTime "10:10:08 PST"]
[Termination "margarita_2703 won by resignation"]

1. e4 {[%clk 0:03:00.9]} 1... b6 {[%clk 0:02:57.8]} 2. d4 {[%clk 0:02:58.6]}
2... Bb7 {[%clk 0:02:58.2]} 3. Bd3 {[%clk 0:02:59.2]} 3... e6 {[%clk 0:02:58.8]}
4. Nf3 {[%clk 0:02:59]} 4... Nf6 {[%clk 0:02:59.5]} 5. Qe2 {[%clk 0:02:57.5]}
5... d5 {[%clk 0:03:00]} 6. e5 {[%clk 0:02:54.7]} 6... Nfd7 {[%clk 0:03:00.4]}
7. O-O {[%clk 0:02:54.1]} 7... c5 {[%clk 0:03:01]} 8. c3 {[%clk 0:02:53.8]} 8...
Nc6 {[%clk 0:03:01.5]} 9. a3 {[%clk 0:02:45.5]} 9... Qc7 {[%clk 0:03:01.9]} 10.
b4 {[%clk 0:02:44.1]} 10... c4 {[%clk 0:03:02]} 11. Bc2 {[%clk 0:02:43.5]} 11...
O-O-O {[%clk 0:03:02.6]} 12. a4 {[%clk 0:02:43]} 12... h6 {[%clk 0:03:02.9]} 13.
Na3 {[%clk 0:02:40.8]} 13... Re8 {[%clk 0:02:59.3]} 14. Nb5 {[%clk 0:02:40.3]}
14... Qb8 {[%clk 0:02:59.2]} 15. Nd2 {[%clk 0:02:37.5]} 15... a6 {[%clk
0:02:58.3]} 16. Na3 {[%clk 0:02:37.8]} 16... Nd8 {[%clk 0:02:52.6]} 17. f4
{[%clk 0:02:37.7]} 17... f5 {[%clk 0:02:52.3]} 18. exf6 {[%clk 0:02:36.6]} 18...
gxf6 {[%clk 0:02:52.5]} 19. Nf3 {[%clk 0:02:35.8]} 19... Rg8 {[%clk 0:02:48.8]}
20. Re1 {[%clk 0:02:31.8]} 20... Bd6 {[%clk 0:02:48.1]} 21. Kh1 {[%clk
0:02:29.6]} 21... Bxf4 {[%clk 0:02:45.9]} 22. b5 {[%clk 0:02:26.2]} 22... a5
{[%clk 0:02:44.1]} 23. Nxc4 {[%clk 0:02:25.5]} 23... dxc4 {[%clk 0:02:30.2]} 24.
Qxc4+ {[%clk 0:02:25.4]} 24... Qc7 {[%clk 0:02:29.1]} 25. Qe2 {[%clk 0:02:23.6]}
25... Bxc1 {[%clk 0:02:26.7]} 26. Raxc1 {[%clk 0:02:24.5]} 26... Kb8 {[%clk
0:02:22.4]} 27. c4 {[%clk 0:02:22.2]} 27... Qf4 {[%clk 0:02:18.2]} 28. Be4
{[%clk 0:02:17.1]} 28... Bxe4 {[%clk 0:02:16.9]} 29. Qxe4 {[%clk 0:02:18]} 29...
Qxe4 {[%clk 0:02:17.3]} 30. Rxe4 {[%clk 0:02:17.7]} 30... e5 {[%clk 0:02:11.9]}
31. Rce1 {[%clk 0:02:16]} 31... Ne6 {[%clk 0:02:12.3]} 32. dxe5 {[%clk
0:02:15.6]} 32... Nec5 {[%clk 0:02:11.8]} 33. R4e2 {[%clk 0:02:12.8]} 33... Nxe5
{[%clk 0:02:08.9]} 34. Nxe5 {[%clk 0:02:10.3]} 34... Rxe5 {[%clk 0:02:09.8]} 35.
Rxe5 {[%clk 0:02:11.2]} 35... fxe5 {[%clk 0:02:10.5]} 36. Rxe5 {[%clk
0:02:11.8]} 36... Nxa4 {[%clk 0:02:10.8]} 37. Re6 {[%clk 0:02:12]} 37... Rc8
{[%clk 0:02:01.7]} 38. Rxh6 {[%clk 0:02:10.6]} 38... Rxc4 {[%clk 0:02:01.7]} 39.
h4 {[%clk 0:02:11.1]} 39... Kb7 {[%clk 0:01:59.6]} 40. Rh7+ {[%clk 0:02:11.3]}
40... Rc7 {[%clk 0:01:58.9]} 41. Rxc7+ {[%clk 0:02:09.8]} 41... Kxc7 {[%clk
0:01:59.8]} 42. h5 {[%clk 0:02:10.7]} 42... Nc5 {[%clk 0:01:44.9]} 43. h6 {[%clk
0:02:07.5]} 43... a4 {[%clk 0:01:18.4]} 44. h7 {[%clk 0:02:08.4]} 44... a3
{[%clk 0:01:18.7]} 45. h8=Q {[%clk 0:02:06.3]} 45... Kd6 {[%clk 0:01:12.5]} 46.
Qb8+ {[%clk 0:02:04.3]} 46... Kd5 {[%clk 0:01:11.4]} 47. Qxb6 {[%clk 0:02:04.4]}
47... Kc4 {[%clk 0:01:06.5]} 48. Qa5 {[%clk 0:02:02.5]} 48... Kb3 {[%clk
0:01:04.7]} 49. b6 {[%clk 0:02:02.1]} 49... a2 {[%clk 0:01:02.1]} 50. Qb5+
{[%clk 0:01:58.7]} 50... Ka3 {[%clk 0:00:59.8]} 51. Qxc5+ {[%clk 0:01:58.8]} 1-0

[Event "Early-Titled-Tuesday-Blitz-January-30-2024"]
[Site "Chess.com"]
[Date "2024.01.30"]
[Round "11"]
[White "Shield12"]
[Black "Szparu"]
[Result "0-1"]
[WhiteElo "2967"]
[BlackElo "2777"]
[TimeControl "180+1"]
[EndTime "10:10:12 PST"]
[Termination "Szparu won by resignation"]

1. e4 {[%clk 0:03:00.9]} 1... e6 {[%clk 0:03:00.2]} 2. Nf3 {[%clk 0:03:01.8]}
2... d5 {[%clk 0:03:00.8]} 3. exd5 {[%clk 0:03:01.5]} 3... exd5 {[%clk
0:03:01.1]} 4. d4 {[%clk 0:03:02.4]} 4... Nf6 {[%clk 0:03:00.9]} 5. Bd3 {[%clk
0:03:01.7]} 5... c5 {[%clk 0:03:01.2]} 6. O-O {[%clk 0:02:59.5]} 6... c4 {[%clk
0:03:01.8]} 7. Re1+ {[%clk 0:02:59.3]} 7... Be7 {[%clk 0:03:02.3]} 8. Bf1 {[%clk
0:03:00.1]} 8... O-O {[%clk 0:03:02.9]} 9. b3 {[%clk 0:03:00.8]} 9... cxb3
{[%clk 0:03:03.8]} 10. axb3 {[%clk 0:03:01.7]} 10... Nc6 {[%clk 0:03:04.7]} 11.
c3 {[%clk 0:03:00.2]} 11... Bf5 {[%clk 0:02:55.2]} 12. Na3 {[%clk 0:02:58.7]}
12... h6 {[%clk 0:02:52.3]} 13. Bd3 {[%clk 0:02:58.2]} 13... Ne4 {[%clk
0:02:50.3]} 14. Bb2 {[%clk 0:02:55.8]} 14... Bd6 {[%clk 0:02:48.6]} 15. Nc2
{[%clk 0:02:55.1]} 15... Bh7 {[%clk 0:02:46]} 16. Ne3 {[%clk 0:02:54.1]} 16...
Re8 {[%clk 0:02:03.5]} 17. Nxd5 {[%clk 0:02:51]} 17... Bxh2+ {[%clk 0:02:03.7]}
18. Nxh2 {[%clk 0:02:51.6]} 18... Qxd5 {[%clk 0:02:04.3]} 19. c4 {[%clk
0:02:51.8]} 19... Qd6 {[%clk 0:02:00.3]} 20. d5 {[%clk 0:02:48.7]} 20... Nb4
{[%clk 0:01:55.4]} 21. Bb1 {[%clk 0:02:39.9]} 21... Nxf2 {[%clk 0:01:38.3]} 22.
Rxe8+ {[%clk 0:02:38.9]} 22... Rxe8 {[%clk 0:01:37.9]} 23. Qd4 {[%clk
0:02:39.8]} 23... Nh3+ {[%clk 0:01:30.6]} 24. Kf1 {[%clk 0:02:13.6]} 24... f6
{[%clk 0:01:18.3]} 25. Bxh7+ {[%clk 0:02:11.1]} 25... Kxh7 {[%clk 0:01:19.2]}
26. Ng4 {[%clk 0:01:47.7]} 26... Qg3 {[%clk 0:00:46.9]} 27. gxh3 {[%clk
0:01:39.3]} 27... Qxh3+ {[%clk 0:00:47.8]} 28. Kf2 {[%clk 0:01:33.6]} 28... Nd3+
{[%clk 0:00:47.1]} 29. Kg1 {[%clk 0:01:32]} 29... Re2 {[%clk 0:00:42.4]} 0-1

[Event "Early-Titled-Tuesday-Blitz-January-30-2024"]
[Site "Chess.com"]
[Date "2024.01.30"]
[Round "11"]
[White "Polish_fighter3000"]
[Black "Gabrielian_Artur"]
[Result "1-0"]
[WhiteElo "3041"]
[BlackElo "2778"]
[TimeControl "180+1"]
[EndTime "10:10:21 PST"]
[Termination "Polish_fighter3000 won by resignation"]

1. b3 {[%clk 0:03:00.9]} 1... Nf6 {[%clk 0:02:59.5]} 2. e3 {[%clk 0:03:01.8]}
2... g6 {[%clk 0:02:59.8]} 3. g3 {[%clk 0:03:02.7]} 3... Bg7 {[%clk 0:03:00.1]}
4. h3 {[%clk 0:03:03.3]} 4... O-O {[%clk 0:03:00.4]} 5. a3 {[%clk 0:03:03.9]}
5... d5 {[%clk 0:03:00.4]} 6. c3 {[%clk 0:03:04.3]} 6... e5 {[%clk 0:03:00.7]}
7. d3 {[%clk 0:03:04.8]} 7... d4 {[%clk 0:03:00.9]} 8. cxd4 {[%clk 0:03:04.8]}
8... exd4 {[%clk 0:03:01.3]} 9. e4 {[%clk 0:03:05.5]} 9... Ne8 {[%clk
0:02:52.2]} 10. f3 {[%clk 0:03:05.5]} 10... f5 {[%clk 0:02:52.4]} 11. Nd2 {[%clk
0:03:02.4]} 11... Qg5 {[%clk 0:02:48.9]} 12. Ne2 {[%clk 0:03:00.9]} 12... fxe4
{[%clk 0:02:41.7]} 13. Nxe4 {[%clk 0:03:00.2]} 13... Qe7 {[%clk 0:02:41.6]} 14.
Bg2 {[%clk 0:02:59.8]} 14... Nd6 {[%clk 0:02:38.1]} 15. Bg5 {[%clk 0:02:55.6]}
15... Qe8 {[%clk 0:02:32.5]} 16. Rc1 {[%clk 0:02:54.4]} 16... Nc6 {[%clk
0:02:31.1]} 17. Nxd6 {[%clk 0:02:53]} 17... cxd6 {[%clk 0:02:31.2]} 18. O-O
{[%clk 0:02:53.9]} 18... Be6 {[%clk 0:02:27.3]} 19. f4 {[%clk 0:02:51.4]} 19...
Qf7 {[%clk 0:02:23.8]} 20. b4 {[%clk 0:02:50.5]} 20... Bd5 {[%clk 0:02:22.5]}
21. g4 {[%clk 0:02:49.6]} 21... Bxg2 {[%clk 0:02:22.2]} 22. Kxg2 {[%clk
0:02:50.5]} 22... Rae8 {[%clk 0:02:21.9]} 23. Ng3 {[%clk 0:02:47.7]} 23... Qa2+
{[%clk 0:01:46.6]} 24. Rf2 {[%clk 0:02:45.6]} 24... Qxa3 {[%clk 0:01:46.3]} 25.
f5 {[%clk 0:02:39.7]} 25... h6 {[%clk 0:01:39.7]} 26. Bf4 {[%clk 0:02:30.8]}
26... Ne5 {[%clk 0:01:18.7]} 27. Bxe5 {[%clk 0:02:28.1]} 27... Bxe5 {[%clk
0:01:18.6]} 28. Ne4 {[%clk 0:02:26]} 28... d5 {[%clk 0:01:13.7]} 29. Nc5 {[%clk
0:02:22.8]} 29... gxf5 {[%clk 0:01:10.1]} 30. gxf5 {[%clk 0:02:23.7]} 30... Kh8
{[%clk 0:01:09.8]} 31. Rb1 {[%clk 0:02:17]} 31... Rg8+ {[%clk 0:01:05.3]} 32.
Kf1 {[%clk 0:02:17.2]} 32... Bg3 {[%clk 0:00:29.3]} 33. Qh5 {[%clk 0:01:53.6]}
33... Kh7 {[%clk 0:00:28.7]} 34. Rg2 {[%clk 0:01:54.1]} 34... Qxb4 {[%clk
0:00:20.4]} 35. Qf7+ {[%clk 0:01:53.9]} 35... Kh8 {[%clk 0:00:20.9]} 36. Qxg8+
{[%clk 0:01:54.5]} 1-0

[Event "Early-Titled-Tuesday-Blitz-January-30-2024"]
[Site "Chess.com"]
[Date "2024.01.30"]
[Round "11"]
[White "LileKoridze"]
[Black "guillembaches"]
[Result "0-1"]
[WhiteElo "2384"]
[BlackElo "2547"]
[TimeControl "180+1"]
[EndTime "10:10:25 PST"]
[Termination "guillembaches won by resignation"]

1. d4 {[%clk 0:03:00.9]} 1... d5 {[%clk 0:03:00.6]} 2. c4 {[%clk 0:03:01.1]}
2... e6 {[%clk 0:03:01.3]} 3. Nf3 {[%clk 0:03:01.6]} 3... a6 {[%clk 0:03:02]} 4.
cxd5 {[%clk 0:03:00.3]} 4... exd5 {[%clk 0:03:01.8]} 5. Nc3 {[%clk 0:03:00.6]}
5... Nf6 {[%clk 0:03:02.1]} 6. Bf4 {[%clk 0:03:00.6]} 6... c5 {[%clk 0:03:01.1]}
7. dxc5 {[%clk 0:02:59.8]} 7... Bxc5 {[%clk 0:02:59.3]} 8. e3 {[%clk 0:03:00.2]}
8... Nc6 {[%clk 0:02:59.2]} 9. a3 {[%clk 0:03:00.3]} 9... O-O {[%clk 0:02:57.8]}
10. Bg5 {[%clk 0:03:00.5]} 10... Be6 {[%clk 0:02:53.1]} 11. Be2 {[%clk
0:03:00.9]} 11... h6 {[%clk 0:02:51.1]} 12. Bh4 {[%clk 0:03:00.6]} 12... g5
{[%clk 0:02:41.1]} 13. Bg3 {[%clk 0:02:56.7]} 13... Ne4 {[%clk 0:02:41.4]} 14.
O-O {[%clk 0:02:55.3]} 14... Nxg3 {[%clk 0:02:16.7]} 15. hxg3 {[%clk 0:02:55.2]}
15... Qd6 {[%clk 0:02:12.1]} 16. Nd4 {[%clk 0:02:52.6]} 16... Nxd4 {[%clk
0:02:04.9]} 17. exd4 {[%clk 0:02:52.6]} 17... Ba7 {[%clk 0:02:03.7]} 18. Qd3
{[%clk 0:02:28.8]} 18... Rae8 {[%clk 0:01:56]} 19. Rad1 {[%clk 0:02:21.5]} 19...
Kg7 {[%clk 0:01:52.5]} 20. f4 {[%clk 0:02:19]} 20... f6 {[%clk 0:01:49.4]} 21.
Bf3 {[%clk 0:02:14.7]} 21... Bf7 {[%clk 0:01:43.5]} 22. Qd2 {[%clk 0:02:11.1]}
22... Re7 {[%clk 0:01:35.9]} 23. Rfe1 {[%clk 0:02:03.5]} 23... Rfe8 {[%clk
0:01:35]} 24. b4 {[%clk 0:01:55]} 24... Rxe1+ {[%clk 0:01:32.2]} 25. Rxe1 {[%clk
0:01:54.6]} 25... Bxd4+ {[%clk 0:01:24]} 26. Kh2 {[%clk 0:01:53.6]} 26... Rxe1
{[%clk 0:01:19]} 27. Qxe1 {[%clk 0:01:53.4]} 27... gxf4 {[%clk 0:01:14.8]} 28.
g4 {[%clk 0:01:53.6]} 28... Be5 {[%clk 0:01:11]} 29. Na4 {[%clk 0:01:52]} 29...
d4 {[%clk 0:01:05.8]} 30. Nc5 {[%clk 0:01:51.8]} 30... d3 {[%clk 0:00:56.5]} 31.
Nxb7 {[%clk 0:01:49.8]} 31... Qd4 {[%clk 0:00:50.3]} 32. Qd2 {[%clk 0:01:45.6]}
32... Qe3 {[%clk 0:00:50.1]} 33. Qd1 {[%clk 0:01:44.6]} 33... d2 {[%clk
0:00:45.1]} 34. Nd8 {[%clk 0:01:44.1]} 34... Bd5 {[%clk 0:00:39.8]} 35. Bxd5
{[%clk 0:01:34.8]} 35... f3+ {[%clk 0:00:39.1]} 36. Kh1 {[%clk 0:01:31.9]} 36...
Qe1+ {[%clk 0:00:37.8]} 0-1